fUST/lending_fUST_20240804
["ID","MTS","AMOUNT","RATE_DAILY","PERIOD"]
[334070468,1722724241208,-250.0,0.00012855,2]
[334070469,1722724241218,-250.0,0.00012889,2]
[334070470,1722724241230,-250.0,0.00012924,2]
[334070471,1722724241240,-250.0,0.00012959,2]
[334070472,1722724241249,-167.111889,0.00012986,2]
[334070474,1722724241259,-250.0,0.00012994,2]
[334070476,1722724241267,-250.0,0.00013028,2]
[334070477,1722724241277,-250.0,0.00013063,2]
[334070479,1722724241286,-250.0,0.00013098,2]
[334070481,1722724241296,-250.0,0.00013132,2]
[334070482,1722724241305,-250.0,0.00013167,2]
[334070483,1722724241315,-250.0,0.00013202,2]
[334070484,1722724241324,-250.0,0.00013236,2]
[334070485,1722724241333,-250.0,0.00013271,2]
[334070486,1722724241343,-250.0,0.00013306,2]
[334070487,1722724241354,-952.03382543,0.00013598,2]
[334070488,1722724241364,-153.0,0.00013638,2]
[334070489,1722724241375,-153.0,0.00013638,2]
[334070490,1722724241385,-153.0,0.00013638,2]
[334070491,1722724241395,-952.03382543,0.00013667,2]
[334070492,1722724241406,-200.0,0.00013673,2]
[334070493,1722724241416,-997.84,0.00013687,2]
[334070494,1722724241426,-56603.7694409,0.00013688,2]
[334070495,1722724241436,-997.84,0.00013697,2]
[334070496,1722724241446,-997.84,0.00013697,2]
[334070497,1722724241457,-6330.3468596,0.00013698,5]
[334070498,1722724241468,-500.0,0.00013698,2]
[334070499,1722724241482,-500.0,0.00013698,2]
[334070500,1722724241492,-500.0,0.00013698,2]
[334070501,1722724241502,-500.0,0.00013698,2]
[334070502,1722724241512,-500.0,0.00013698,2]
[334070503,1722724241523,-500.0,0.00013698,2]
[334070504,1722724241532,-500.0,0.00013698,2]
[334070505,1722724241542,-500.0,0.00013698,2]
[334070506,1722724241553,-500.0,0.00013698,2]
[334070507,1722724241562,-232.12203426,0.00013698,2]
[334070508,1722724241572,-173.0145936,0.00013698,2]
[334070509,1722724241582,-500.0,0.00013698,2]
[334070510,1722724241592,-500.0,0.00013698,2]
[334070511,1722724241602,-500.0,0.00013698,2]
[334070512,1722724241611,-500.0,0.00013698,2]
[334070513,1722724241620,-500.0,0.00013698,2]
[334070514,1722724241629,-500.0,0.00013698,2]
[334070515,1722724241639,-507.56802688,0.00013698,2]
[334070516,1722724241648,-543.59444247,0.00013698,2]
[334070517,1722724241657,-500.0,0.00013698,2]
[334070518,1722724241667,-600.18942545,0.00013698,2]
[334070520,1722724241676,-500.0,0.00013698,2]
[334070521,1722724241686,-503.631483,0.00013698,2]
[334070522,1722724241695,-628.595859,0.00013698,2]
[334070523,1722724241705,-272.92790492,0.00013698,2]
[334070524,1722724241715,-500.0,0.00013698,2]
[334070525,1722724241727,-170.3200768,0.00013698,2]
[334070526,1722724241736,-500.0,0.00013698,2]
[334070527,1722724241747,-500.0,0.00013698,2]
[334070528,1722724241756,-500.0,0.00013698,2]
[334070529,1722724241766,-500.0,0.00013698,2]
[334070530,1722724241776,-500.0,0.00013698,2]
[334070531,1722724241785,-500.0,0.00013698,2]
[334070532,1722724241795,-500.0,0.00013698,2]
[334070533,1722724241805,-454.03894399,0.00013698,2]
[334070534,1722724241814,-500.0,0.00013698,2]
[334070535,1722724241824,-500.0,0.00013698,2]
[334070536,1722724241834,-500.0,0.00013698,2]
[334070537,1722724241843,-500.0,0.00013698,2]
[334070538,1722724241854,-500.0,0.00013698,2]
[334070539,1722724241864,-528.97781954,0.00013698,2]
[334070540,1722724241874,-500.0,0.00013698,2]
[334070541,1722724241884,-500.0,0.00013698,2]
[334070542,1722724241896,-500.0,0.00013698,2]
[334070543,1722724241908,-500.0,0.00013698,2]
[334070544,1722724241918,-500.0,0.00013698,2]
[334070545,1722724241928,-505.15509623,0.00013698,2]
[334070546,1722724241939,-500.73041792,0.00013698,2]
[334070547,1722724241949,-500.0,0.00013698,2]
[334070548,1722724241959,-500.0,0.00013698,2]
[334070549,1722724241969,-500.0,0.00013698,2]
[334070550,1722724241982,-500.0,0.00013698,2]
[334070551,1722724241992,-500.0,0.00013698,2]
[334070552,1722724242002,-500.0,0.00013698,2]
[334070553,1722724242012,-500.0,0.00013698,2]
[334070554,1722724242023,-500.0,0.00013698,2]
[334070555,1722724242032,-500.0,0.00013698,2]
[334070556,1722724242042,-500.0,0.00013698,2]
[334070557,1722724242051,-500.0,0.00013698,2]
[334070558,1722724242062,-500.0,0.00013698,2]
[334070559,1722724242072,-500.0,0.00013698,2]
[334070560,1722724242082,-326.03432267,0.00013698,2]
[334070561,1722724242092,-500.0,0.00013698,2]
[334070562,1722724242102,-511.3,0.00013698,2]
[334070563,1722724242111,-218.04690979,0.00013698,2]
[334070564,1722724242121,-507.34818783,0.00013698,2]
[334070565,1722724242131,-519.42702461,0.00013698,2]
[334070566,1722724242142,-500.0,0.00013698,2]
[334070567,1722724242151,-500.0,0.00013698,2]
[334070568,1722724242161,-500.0,0.00013698,2]
[334070569,1722724242171,-500.0,0.00013698,2]
[334070570,1722724242180,-500.0,0.00013698,2]
[334070571,1722724242190,-500.0,0.00013698,2]
[334070572,1722724242200,-500.0,0.00013698,2]
[334070573,1722724242209,-500.0,0.00013698,2]
[334070574,1722724242218,-188.66237129,0.00013698,2]
[334070575,1722724242229,-500.0,0.00013698,2]
[334070576,1722724242239,-500.0,0.00013698,2]
[334070577,1722724242249,-500.0,0.00013698,2]
[334070578,1722724242258,-500.0,0.00013698,2]
[334070579,1722724242268,-289.26489898,0.00013698,2]
[334070580,1722724242278,-445.78366679,0.00013698,2]
[334070581,1722724242288,-500.0,0.00013698,2]
[334070582,1722724242298,-500.0,0.00013698,2]
[334070583,1722724242310,-500.0,0.00013698,2]
[334070584,1722724242322,-500.0,0.00013698,2]
[334070585,1722724242332,-500.0,0.00013698,2]
[334070586,1722724242343,-194.27418549,0.00013698,2]
[334070587,1722724242355,-410.52935477,0.00013698,2]
[334070588,1722724242367,-500.0,0.00013698,2]
[334070589,1722724242378,-500.0,0.00013698,2]
[334070590,1722724242389,-500.0,0.00013698,2]
[334070591,1722724242400,-500.0,0.00013698,2]
[334070592,1722724242410,-500.0,0.00013698,2]
[334070593,1722724242420,-500.0,0.00013698,2]
[334070594,1722724242431,-500.0,0.00013698,2]
[334070595,1722724242441,-500.0,0.00013698,2]
[334070596,1722724242452,-500.0,0.00013698,2]
[334070597,1722724242464,-500.0,0.00013698,2]
[334070598,1722724242475,-500.0,0.00013698,2]
[334070599,1722724242489,-500.0,0.00013698,2]
[334070600,1722724242498,-500.0,0.00013698,2]
[334070601,1722724242509,-500.0,0.00013698,2]
[334070602,1722724242519,-500.0,0.00013698,2]
[334070603,1722724242530,-178.4216098,0.00013698,2]
[334070604,1722724242539,-500.0,0.00013698,2]
[334070605,1722724242553,-504.10445539,0.00013698,2]
[334070606,1722724242565,-500.0,0.00013698,2]
[334070607,1722724242575,-500.0,0.00013698,2]
[334070608,1722724242587,-500.0,0.00013698,2]
[334070609,1722724242598,-500.0,0.00013698,2]
[334070610,1722724242608,-500.0,0.00013698,2]
[334070611,1722724242618,-500.0,0.00013698,2]
[334070612,1722724242629,-500.0,0.00013698,2]
[334070613,1722724242639,-500.0,0.00013698,2]
[334070614,1722724242650,-500.0,0.00013698,2]
[334070615,1722724242661,-500.0,0.00013698,2]
[334070616,1722724242672,-500.0,0.00013698,2]
[334070617,1722724242683,-500.0,0.00013698,2]
[334070618,1722724242695,-500.0,0.00013698,2]
[334070619,1722724242705,-483.25628062,0.00013698,2]
[334070620,1722724242715,-500.0,0.00013698,2]
[334070621,1722724242727,-500.0,0.00013698,2]
[334070622,1722724242738,-500.0,0.00013698,2]
[334070623,1722724242751,-500.0,0.00013698,2]
[334070624,1722724242762,-251.02775073,0.00013698,2]
[334070625,1722724242773,-640.16,0.00013698,2]
[334070626,1722724242784,-500.0,0.00013698,2]
[334070627,1722724242794,-233.61649993,0.00013698,2]
[334070628,1722724242804,-500.0,0.00013698,2]
[334070629,1722724242816,-500.0,0.00013698,2]
[334070630,1722724242828,-504.0877914,0.00013698,2]
[334070631,1722724242838,-500.0,0.00013698,2]
[334070632,1722724242848,-500.0,0.00013698,2]
[334070633,1722724242857,-500.0,0.00013698,2]
[334070634,1722724242867,-500.0,0.00013698,2]
[334070635,1722724242876,-500.0,0.00013698,2]
[334070636,1722724242885,-214.67892049,0.00013698,2]
[334070637,1722724242895,-500.0,0.00013698,2]
[334070638,1722724242905,-500.0,0.00013698,2]
[334070639,1722724242914,-162.12256688,0.00013698,2]
[334070640,1722724242924,-500.0,0.00013698,2]
[334070641,1722724242934,-515.3322998,0.00013698,2]
[334070642,1722724242943,-593.67,0.00013698,2]
[334070643,1722724242953,-331.83517555,0.00013698,2]
[334070644,1722724242964,-507.63589301,0.00013698,2]
[334070645,1722724242973,-500.0,0.00013698,2]
[334070646,1722724242982,-500.0,0.00013698,2]
[334070647,1722724242993,-500.0,0.00013698,2]
[334070648,1722724243005,-500.0,0.00013698,2]
[334070649,1722724243015,-500.0,0.00013698,2]
[334070650,1722724243026,-500.0,0.00013698,2]
[334070651,1722724243036,-500.0,0.00013698,2]
[334070652,1722724243046,-500.0,0.00013698,2]
[334070653,1722724243056,-500.0,0.00013698,2]
[334070654,1722724243065,-500.0,0.00013698,2]
[334070655,1722724243076,-511.11563533,0.00013698,2]
[334070656,1722724243087,-500.0,0.00013698,2]
[334070657,1722724243096,-500.0,0.00013698,2]
[334070658,1722724243107,-500.0,0.00013698,2]
[334070659,1722724243118,-333.76648805,0.00013698,2]
[334070660,1722724243128,-200.0,0.00013698,2]
[334070661,1722724243140,-500.0,0.00013698,2]
[334070662,1722724243150,-500.0,0.00013698,2]
[334070663,1722724243161,-500.0,0.00013698,2]
[334070664,1722724243172,-498.26237834,0.00013698,2]
[334070665,1722724243266,-500.0,0.00013698,2]
[334070666,1722724243277,-500.0,0.00013698,2]
[334070667,1722724243288,-500.0,0.00013698,2]
[334070668,1722724243297,-500.0,0.00013698,2]
[334070669,1722724243306,-500.0,0.00013698,2]
[334070670,1722724243316,-500.0,0.00013698,2]
[334070671,1722724243327,-503.20124971,0.00013698,2]
[334070672,1722724243336,-503.05056989,0.00013698,2]
[334070674,1722724243346,-500.0,0.00013698,2]
[334070676,1722724243356,-500.0,0.00013698,2]
[334070677,1722724243367,-504.03913562,0.00013698,2]
[334070678,1722724243376,-500.0,0.00013698,2]
[334070679,1722724243386,-500.0,0.00013698,2]
[334070680,1722724243396,-500.0,0.00013698,2]
[334070681,1722724243406,-500.0,0.00013698,2]
[334070682,1722724243415,-550.21483176,0.00013698,2]
[334070683,1722724243425,-500.0,0.00013698,2]
[334070684,1722724243435,-500.0,0.00013698,2]
[334070685,1722724243447,-500.0,0.00013698,2]
[334070686,1722724243458,-500.0,0.00013698,2]
[334070687,1722724243469,-500.0,0.00013698,2]
[334070688,1722724243482,-500.0,0.00013698,2]
[334070690,1722724243492,-500.0,0.00013698,2]
[334070691,1722724243501,-500.0,0.00013698,2]
[334070692,1722724243511,-500.0,0.00013698,2]
[334070693,1722724243524,-450.0,0.00013698,2]
[334070694,1722724243536,-606.436354,0.00013698,2]
[334070695,1722724243547,-500.0,0.00013698,2]
[334070696,1722724243560,-500.0,0.00013698,2]
[334070697,1722724243572,-500.0,0.00013698,2]
[334070698,1722724243581,-500.0,0.00013698,2]
[334070699,1722724243591,-500.0,0.00013698,2]
[334070700,1722724243603,-500.0,0.00013698,2]
[334070701,1722724243613,-603.79480669,0.00013698,2]
[334070702,1722724243624,-500.0,0.00013698,2]
[334070703,1722724243635,-500.0,0.00013698,2]
[334070704,1722724243645,-500.0,0.00013698,2]
[334070705,1722724243654,-500.0,0.00013698,2]
[334070706,1722724243664,-500.0,0.00013698,2]
[334070707,1722724243674,-595.9442044,0.00013698,2]
[334070708,1722724243684,-500.0,0.00013698,2]
[334070709,1722724243695,-500.0,0.00013698,2]
[334070710,1722724243706,-500.0,0.00013698,2]
[334070711,1722724243715,-500.0,0.00013698,2]
[334070712,1722724243726,-235.97,0.00013698,2]
[334070713,1722724243736,-500.0,0.00013698,2]
[334070714,1722724243746,-501.97761339,0.00013698,2]
[334070715,1722724243756,-500.0,0.00013698,2]
[334070716,1722724243766,-500.0,0.00013698,2]
[334070717,1722724243776,-500.0,0.00013698,2]
[334070718,1722724243785,-502.14,0.00013698,2]
[334070719,1722724243795,-500.0,0.00013698,2]
[334070720,1722724243804,-500.0,0.00013698,2]
[334070721,1722724243814,-161.66849535,0.00013698,2]
[334070722,1722724243823,-500.0,0.00013698,2]
[334070723,1722724243833,-500.0,0.00013698,2]
[334070724,1722724243842,-500.0,0.00013698,2]
[334070725,1722724243852,-500.0,0.00013698,2]
[334070726,1722724243861,-500.0,0.00013698,2]
[334070727,1722724243871,-531.72138596,0.00013698,2]
[334070728,1722724243881,-500.0,0.00013698,2]
[334070729,1722724243891,-500.0,0.00013698,2]
[334070730,1722724243902,-500.0,0.00013698,2]
[334070731,1722724243912,-500.0,0.00013698,2]
[334070732,1722724243922,-500.0,0.00013698,2]
[334070733,1722724243931,-500.0,0.00013698,2]
[334070734,1722724243941,-500.0,0.00013698,2]
[334070735,1722724243951,-500.0,0.00013698,2]
[334070736,1722724243960,-500.0,0.00013698,2]
[334070737,1722724243969,-500.0,0.00013698,2]
[334070738,1722724243979,-500.0,0.00013698,2]
[334070739,1722724243989,-400.57860525,0.00013698,2]
[334070740,1722724243999,-500.0,0.00013698,2]
[334070741,1722724244008,-500.0,0.00013698,2]
[334070742,1722724244018,-500.0,0.00013698,2]
[334070743,1722724244027,-500.0,0.00013698,2]
[334070744,1722724244037,-500.0,0.00013698,2]
[334070745,1722724244047,-500.0,0.00013698,2]
[334070746,1722724244056,-500.0,0.00013698,2]
[334070747,1722724244065,-500.0,0.00013698,2]
[334070748,1722724244074,-500.0,0.00013698,2]
[334070749,1722724244083,-500.0,0.00013698,2]
[334070750,1722724244093,-500.0,0.00013698,2]
[334070751,1722724244102,-500.0,0.00013698,2]
[334070752,1722724244112,-500.0,0.00013698,2]
[334070753,1722724244121,-500.0,0.00013698,2]
[334070754,1722724244130,-500.0,0.00013698,2]
[334070755,1722724244140,-338.0212818,0.00013698,2]
[334070756,1722724244149,-500.0,0.00013698,2]
[334070757,1722724244159,-500.0,0.00013698,2]
[334070758,1722724244169,-500.0,0.00013698,2]
[334070759,1722724244180,-500.0,0.00013698,2]
[334070760,1722724244189,-500.0,0.00013698,2]
[334070761,1722724244199,-500.0,0.00013698,2]
[334070762,1722724244211,-500.0,0.00013698,2]
[334070763,1722724244221,-500.0,0.00013698,2]
[334070764,1722724244235,-500.41144212,0.00013698,2]
[334070765,1722724244245,-500.0,0.00013698,2]
[334070766,1722724244255,-711.59,0.00013698,2]
[334070767,1722724244274,-500.0,0.00013698,2]
[334070768,1722724244285,-500.0,0.00013698,2]
[334070769,1722724244295,-500.0,0.00013698,2]
[334070770,1722724244305,-500.0,0.00013698,2]
[334070771,1722724244315,-500.0,0.00013698,2]
[334070772,1722724244326,-560.11250154,0.00013698,2]
[334070773,1722724244335,-500.0,0.00013698,2]
[334070774,1722724244345,-383.99679095,0.00013698,2]
[334070775,1722724244355,-500.0,0.00013698,2]
[334070776,1722724244365,-500.0,0.00013698,2]
[334070777,1722724244374,-500.0,0.00013698,2]
[334070778,1722724244384,-500.0,0.00013698,2]
[334070779,1722724244394,-500.0,0.00013698,2]
[334070780,1722724244404,-500.0,0.00013698,2]
[334070781,1722724244413,-519.81703122,0.00013698,2]
[334070782,1722724244423,-500.0,0.00013698,2]
[334070783,1722724244434,-500.0,0.00013698,2]
[334070784,1722724244445,-500.0,0.00013698,2]
[334070785,1722724244454,-500.0,0.00013698,2]
[334070787,1722724244464,-500.0,0.00013698,2]
[334070788,1722724244477,-500.0,0.00013698,2]
[334070789,1722724244489,-500.0,0.00013698,2]
[334070790,1722724244499,-500.0,0.00013698,2]
[334070792,1722724244508,-500.0,0.00013698,2]
[334070793,1722724244517,-500.0,0.00013698,2]
[334070795,1722724244528,-500.0,0.00013698,2]
[334070796,1722724244538,-500.0,0.00013698,2]
[334070797,1722724244548,-500.0,0.00013698,2]
[334070798,1722724244560,-500.0,0.00013698,2]
[334070800,1722724244571,-500.0,0.00013698,2]
[334070802,1722724244581,-500.0,0.00013698,2]
[334070804,1722724244592,-500.0,0.00013698,2]
[334070806,1722724244602,-500.0,0.00013698,2]
[334070807,1722724244612,-500.0,0.00013698,2]
[334070808,1722724244625,-500.0,0.00013698,2]
[334070809,1722724244634,-500.0,0.00013698,2]
[334070810,1722724244646,-500.0,0.00013698,2]
[334070811,1722724244656,-500.0,0.00013698,2]
[334070812,1722724244665,-500.0,0.00013698,2]
[334070813,1722724244674,-673.88,0.00013698,2]
[334070814,1722724244684,-500.0,0.00013698,2]
[334070815,1722724244693,-759.0,0.00013698,2]
[334070816,1722724244703,-500.0,0.00013698,2]
[334070817,1722724244712,-312.51887577,0.00013698,2]
[334070818,1722724244721,-500.0,0.00013698,2]
[334070819,1722724244732,-740.24,0.00013698,2]
[334070820,1722724244742,-500.0,0.00013698,2]
[334070821,1722724244752,-500.0,0.00013698,2]
[334070822,1722724244762,-500.0,0.00013698,2]
[334070823,1722724244771,-500.0,0.00013698,2]
[334070824,1722724244781,-500.0,0.00013698,2]
[334070825,1722724244791,-500.0,0.00013698,2]
[334070826,1722724244801,-539.04334792,0.00013698,2]
[334070827,1722724244811,-500.0,0.00013698,2]
[334070828,1722724244821,-500.0,0.00013698,2]
[334070829,1722724244831,-386.3386317,0.00013698,2]
[334070830,1722724244840,-169.06239659,0.00013698,2]
[334070831,1722724244852,-500.0,0.00013698,2]
[334070832,1722724244863,-500.0,0.00013698,2]
[334070833,1722724244873,-500.0,0.00013698,2]
[334070834,1722724244885,-575.66,0.00013698,2]
[334070835,1722724244894,-500.0,0.00013698,2]
[334070836,1722724244904,-500.0,0.00013698,2]
[334070837,1722724244915,-500.0,0.00013698,2]
[334070838,1722724244925,-500.0,0.00013698,2]
[334070839,1722724244937,-455.35880274,0.00013698,2]
[334070840,1722724244948,-500.0,0.00013698,2]
[334070841,1722724244957,-500.0,0.00013698,2]
[334070842,1722724244967,-500.0,0.00013698,2]
[334070843,1722724244979,-500.0,0.00013698,2]
[334070844,1722724244988,-500.0,0.00013698,2]
[334070845,1722724244998,-500.0,0.00013698,2]
[334070846,1722724245008,-500.0,0.00013698,2]
[334070847,1722724245018,-2350.18,0.00013698,2]
[334070848,1722724245029,-500.0,0.00013698,2]
[334070849,1722724245039,-500.0,0.00013698,2]
[334070850,1722724245049,-500.0,0.00013698,2]
[334070851,1722724245058,-500.0,0.00013698,2]
[334070852,1722724245068,-500.0,0.00013698,2]
[334070853,1722724245077,-500.0,0.00013698,2]
[334070854,1722724245086,-500.0,0.00013698,2]
[334070855,1722724245096,-290.87315042,0.00013698,2]
[334070856,1722724245105,-2184.33,0.00013698,2]
[334070857,1722724245118,-500.0,0.00013698,2]
[334070858,1722724245127,-500.0,0.00013698,2]
[334070859,1722724245137,-500.0,0.00013698,2]
[334070860,1722724245147,-500.0,0.00013698,2]
[334070861,1722724245157,-604.47294293,0.00013698,2]
[334070862,1722724245166,-500.0,0.00013698,2]
[334070863,1722724245176,-500.0,0.00013698,2]
[334070864,1722724245186,-1056.26,0.00013698,2]
[334070865,1722724245196,-500.0,0.00013698,2]
[334070866,1722724245205,-711.81,0.00013698,2]
[334070867,1722724245215,-500.0,0.00013698,2]
[334070868,1722724245224,-487.06573187,0.00013698,2]
[334070869,1722724245234,-500.0,0.00013698,2]
[334070870,1722724245244,-500.0,0.00013698,2]
[334070871,1722724245254,-500.0,0.00013698,2]
[334070872,1722724245263,-500.0,0.00013698,2]
[334070873,1722724245273,-500.0,0.00013698,2]
[334070874,1722724245283,-500.0,0.00013698,2]
[334070875,1722724245293,-500.0,0.00013698,2]
[334070876,1722724245302,-384.47367716,0.00013698,2]
[334070909,1722724247196,-115.52632284,0.00013698,2]
[334070910,1722724247206,-500.0,0.00013698,2]
[334070911,1722724247216,-402.92015911,0.00013698,2]
[334070912,1722724247227,-500.0,0.00013698,2]
[334070913,1722724247236,-575.77,0.00013698,2]
[334070914,1722724247246,-500.0,0.00013698,2]
[334070915,1722724247255,-500.0,0.00013698,2]
[334070916,1722724247266,-500.0,0.00013698,2]
[334070917,1722724247275,-500.0,0.00013698,2]
[334070918,1722724247284,-500.0,0.00013698,2]
[334070919,1722724247294,-500.0,0.00013698,2]
[334070920,1722724247303,-500.0,0.00013698,2]
[334070921,1722724247312,-500.0,0.00013698,2]
[334070922,1722724247322,-500.0,0.00013698,2]
[334070923,1722724247330,-500.0,0.00013698,2]
[334070924,1722724247341,-500.0,0.00013698,2]
[334070925,1722724247350,-500.44427596,0.00013698,2]
[334070926,1722724247360,-500.0,0.00013698,2]
[334070927,1722724247370,-500.0,0.00013698,2]
[334070928,1722724247379,-500.0,0.00013698,2]
[334070929,1722724247389,-500.0,0.00013698,2]
[334070930,1722724247398,-500.0,0.00013698,2]
[334070931,1722724247407,-1353.29,0.00013698,2]
[334070932,1722724247416,-500.0,0.00013698,2]
[334070933,1722724247426,-500.0,0.00013698,2]
[334070934,1722724247435,-500.0,0.00013698,2]
[334070935,1722724247444,-2036.19,0.00013698,2]
[334070936,1722724247454,-500.0,0.00013698,2]
[334070937,1722724247465,-45.01396534,0.00013698,2]
[334070938,1722724247480,-454.98603466,0.00013698,2]
[334070939,1722724247492,-500.0,0.00013698,2]
[334070940,1722724247501,-500.0,0.00013698,2]
[334070941,1722724247510,-500.0,0.00013698,2]
[334070942,1722724247519,-500.0,0.00013698,2]
[334070943,1722724247530,-54.82523539,0.00013698,2]
[334070944,1722724247542,-445.17476461,0.00013698,2]
[334070945,1722724247551,-500.0,0.00013698,2]
[334070946,1722724247563,-501.82770211,0.00013698,2]
[334070947,1722724247574,-269.95753315,0.00013698,2]
[334070962,1722724350800,471.76589724,9.999e-05,7]
[334070968,1722724446291,471.76589724,9.999e-05,7]
[334070970,1722724540798,471.76589724,9.999e-05,7]
[334070972,1722724642307,471.76589724,9.999e-05,7]
[334070973,1722724745310,471.76589724,9.999e-05,7]
[334070974,1722724845331,471.76589724,9.999e-05,7]
[334070979,1722724988338,471.76589724,9.999e-05,7]
[334070981,1722725080343,471.76589724,9.999e-05,7]
[334070985,1722725182836,471.76589724,9.999e-05,7]
[334070987,1722725227204,-156.95333335,9.999e-05,2]
[334070988,1722725227226,-879.57,0.00010959,2]
[334070989,1722725227247,-300.0,0.00012263,2]
[334070990,1722725227269,-1461.50562656,0.00012264,2]
[334070992,1722725234089,-2322.50021471,0.00012264,2]
[334070994,1722725281343,383.65962256,9.999e-05,7]
[334071011,1722725432502,-156.95333335,9.999e-05,2]
[334071012,1722725432511,-2172.92046181,0.00012078,2]
[334071013,1722725432523,-16788.11344907,0.00012078,2]
[334071050,1722725438403,-1109.081745,0.00012078,2]
[334071052,1722725438727,-472.13235622,0.00012078,2]
[334071055,1722725439140,-856.81,0.00012078,2]
[334071091,1722725440164,-3500.9419879,0.00012078,2]
[334071092,1722725440174,-300.97176093,0.0001212,2]
[334071093,1722725440183,-171.41648367,0.00012264,2]
[334071094,1722725440194,-250.0,0.00012551,2]
[334071095,1722725440203,-250.0,0.00012585,2]
[334071096,1722725440213,-250.0,0.00012619,2]
[334071097,1722725440226,-250.0,0.00012654,2]
[334071098,1722725440235,-250.0,0.00012688,2]
[334071099,1722725440245,-250.0,0.00012723,2]
[334071100,1722725440254,-250.0,0.00012757,2]
[334071101,1722725440263,-250.0,0.00012791,2]
[334071102,1722725440272,-250.0,0.00012826,2]
[334071103,1722725440282,-250.0,0.0001286,2]
[334071104,1722725440291,-250.0,0.00012895,2]
[334071105,1722725440301,-250.0,0.00012929,2]
[334071106,1722725440310,-250.0,0.00012964,2]
[334071107,1722725440319,-166.585951,0.00012986,2]
[334071108,1722725440328,-250.0,0.00012998,2]
[334071109,1722725440337,-154.86274198,0.00013,2]
[334071110,1722725440347,-206.9081726,0.00013,2]
[334071111,1722725440357,-250.0,0.00013032,2]
[334071112,1722725440366,-153.0,0.00013041,2]
[334071113,1722725440375,-153.0,0.00013041,2]
[334071114,1722725440385,-250.0,0.00013067,2]
[334071115,1722725440395,-250.0,0.00013101,2]
[334071116,1722725440404,-250.0,0.00013136,2]
[334071117,1722725440415,-250.0,0.0001317,2]
[334071118,1722725440425,-250.0,0.00013204,2]
[334071119,1722725440436,-153.0,0.00013341,2]
[334071120,1722725440447,-153.0,0.00013534,2]
[334071121,1722725440458,-153.0,0.00013534,2]
[334071122,1722725440470,-266.77411764,0.00013544,2]
[334071123,1722725440485,-87.37507376,0.00013544,2]
[334071124,1722725440495,-153.0,0.00013562,2]
[334071125,1722725440505,-516.69147695,0.00013566,2]
[334071126,1722725440517,-5837.99769661,0.00013566,2]
[334071127,1722725440527,-1124.2989178,0.00013597,2]
[334071128,1722725440536,-1124.29891779,0.00013648,2]
[334071129,1722725440547,-20588.7836397,0.00013678,2]
[334071130,1722725440559,-1178.84,0.00013687,2]
[334071131,1722725440570,-19296.33992638,0.00013688,2]
[334071132,1722725440586,-63058.79463262,0.00013688,2]
[334071133,1722725440597,-1178.84,0.00013697,2]
[334071134,1722725440607,-1178.84,0.00013697,2]
[334071135,1722725440618,-1178.84,0.00013697,2]
[334071136,1722725440628,-6330.3468596,0.00013698,5]